fUST/lending_fUST_20240806
["ID","MTS","AMOUNT","RATE_DAILY","PERIOD"]
[334299803,1722927039693,-1383.1311371,0.00019256,2]
[334299804,1722927039703,-1991.50486571,0.00019256,2]
[334299805,1722927039712,-213.570233,0.00019439,2]
[334299806,1722927039722,-2849.31423163,0.00019451,2]
[334299807,1722927039732,-2874.80344712,0.00019451,2]
[334299808,1722927039741,-1794.47294319,0.00019451,2]
[334299809,1722927039750,-1500.0,0.00019451,2]
[334299810,1722927039759,-2849.31423163,0.00019451,2]
[334299811,1722927039769,-1162.72829906,0.00019451,2]
[334299812,1722927039778,-1763.34953629,0.00019451,2]
[334299813,1722927039787,-188.24924053,0.00019451,2]
[334299814,1722927039797,-192.44,0.00019458,3]
[334299815,1722927039806,-577.34,0.00019458,3]
[334299816,1722927039815,-253.78762951,0.00019467,2]
[334299817,1722927039824,-500.0,0.00019467,2]
[334299818,1722927039834,-500.0,0.00019467,2]
[334299819,1722927039844,-500.0,0.00019467,2]
[334299820,1722927039853,-500.0,0.00019467,2]
[334299821,1722927039862,-500.0,0.00019467,2]
[334299822,1722927039872,-500.0,0.00019467,2]
[334299823,1722927039886,-500.0,0.00019467,2]
[334299824,1722927039899,-56884.0984633,0.00019468,2]
[334299825,1722927039910,-200.0,0.00019473,2]
[334299826,1722927039921,-8818.29235513,0.00019477,2]
[334299827,1722927039930,-9641.65829969,0.00019477,2]
[334299828,1722927039941,-1610.56614984,0.00019477,2]
[334299829,1722927039951,-2124.35920477,0.00019477,2]
[334299830,1722927039960,-951.94046237,0.00019477,2]
[334299831,1722927039970,-2162.43676373,0.00019547,2]
[334299832,1722927039979,-2138.98947464,0.00019547,2]
[334299833,1722927039989,-200.0,0.00019573,2]
[334299834,1722927039998,-1438.19153297,0.00019999,2]
[334299835,1722927040008,-808.14934153,0.00019999,2]
[334299836,1722927040017,-1000.0,0.0002,20]
[334299837,1722927040027,-154.99431637,0.0002,2]
[334299838,1722927040037,-219.1840785,0.0002028,2]
[334299839,1722927040048,-56884.0984633,0.00020545,2]
[334299840,1722927040058,-200.0,0.00020573,2]
[334299842,1722927040068,-1277.96721421,0.00020607,2]
[334299843,1722927040077,-241.747545,0.00020707,2]
[334299845,1722927040087,-1277.96721421,0.00020828,2]
[334299847,1722927040098,-384.88,0.00020828,3]
[334299849,1722927040110,-400.0,0.00020842,2]
[334299851,1722927040120,-400.0,0.00020942,2]
[334299853,1722927040135,-150.112233,0.00021,4]
[334299855,1722927040147,-155.20766642,0.00021011,2]
[334299857,1722927040156,-981.21,0.00021011,2]
[334299859,1722927040166,-277.22173043,0.00021011,2]
[334299861,1722927040175,-296.9978564,0.00021011,2]
[334299863,1722927040184,-1277.96721421,0.00021048,2]
[334299865,1722927040194,-1277.96721421,0.00021269,2]
[334299867,1722927040203,-170.05525585,0.0002142,2]
[334299869,1722927040213,-843.15246515,0.0002142,2]
[334299871,1722927040223,-1277.96721421,0.00021489,2]
[334299873,1722927040232,-154.92269069,0.00021532,2]
[334299875,1722927040242,-209.18351946,0.00021532,2]
[334299877,1722927040251,-862.42234122,0.00021532,2]
[334299880,1722927040261,-1717.8602707,0.00021532,2]
[334299881,1722927040270,-337.08857677,0.00021532,2]
[334299882,1722927040279,-492.40339763,0.00021542,2]
[334299883,1722927040289,-297.21655646,0.00021542,2]
[334299884,1722927040299,-534.77348609,0.00021542,2]
[334299885,1722927040308,-154.94095582,0.00021542,2]
[334299887,1722927040318,-154.94706517,0.00021542,2]
[334299888,1722927040327,-171.88805578,0.00021542,2]
[334299889,1722927040337,-56884.0984633,0.00021579,3]
[334299890,1722927040347,-845.47187628,0.00021591,2]
[334299891,1722927040357,-263.49751931,0.00021591,2]
[334299892,1722927040366,-154.80649189,0.00021599,2]
[334299893,1722927040376,-194.5599409,0.00021602,2]
[334299894,1722927040394,-418.62896724,0.00021602,2]
[334299896,1722927040404,-153.0,0.000217,2]
[334299898,1722927040413,-4330.07384426,0.00021906,2]
[334299900,1722927040423,-2395.09747727,0.00021906,2]
[334299902,1722927040439,-400.0,0.00021942,2]
[334299904,1722927040449,-179.49,0.00022,7]
[334299906,1722927040458,-4086.08,0.00022,14]
[334299908,1722927040468,-302.33493269,0.00022,2]
[334299909,1722927040477,-302.33493269,0.0002222,2]
[334299911,1722927040487,-302.09383032,0.0002244,2]
[334299912,1722927040497,-150.112233,0.000226,3]
[334299913,1722927040508,-600.0,0.00022846,2]
[334299914,1722927040518,-600.0,0.00022946,2]
[334299915,1722927040528,-86878.92232425,0.00023232,2]
[334299916,1722927040538,-394.95848255,0.00023946,2]
[334299917,1722927040548,-150.112233,0.000242,4]
[334299919,1722927040557,-802.00344159,0.00025287,2]
[334299921,1722927040567,-150.112233,0.000258,9]
[334299922,1722927040577,-3574.52184507,0.00026564,60]
[334299923,1722927040587,-6542.36447932,0.00026564,2]
[334299924,1722927040597,-241.747545,0.00027167,2]
[334299925,1722927040607,-150.112233,0.000274,6]
[334299926,1722927040617,-179.49,0.000274,7]
[334299927,1722927040627,-1000.0,0.00028,28]
[334299928,1722927040643,-150.112233,0.000281,5]
[334299929,1722927040654,-4086.08,0.000281,14]
[334299930,1722927040664,-56884.0984633,0.00028267,3]
[334299931,1722927040674,-151.0,0.00028267,7]
[334299933,1722927040685,-151.0,0.00028267,7]
[334299935,1722927040696,-2194.70977,0.00028267,7]
[334299937,1722927040705,-2194.70977,0.00028267,7]
[334299938,1722927040715,-833.28281558,0.00028273,2]
[334299940,1722927040728,-151.0,0.00028277,7]
[334299941,1722927040739,-151.0,0.00028277,7]
[334299942,1722927040749,-190.436969,0.00028277,7]
[334299943,1722927040758,-190.436969,0.00028277,7]
[334299944,1722927040767,-354.35954,0.00028277,7]
[334299945,1722927040777,-354.35954,0.00028277,7]
[334299946,1722927040787,-1989.794819,0.00028277,7]
[334299947,1722927040796,-332.035726,0.00028277,7]
[334299948,1722927040806,-1216.975132,0.00028362,7]
[334299949,1722927040816,-1216.975132,0.00028362,7]
[334299950,1722927040826,-151.0,0.00028362,7]
[334299951,1722927040836,-151.0,0.00028362,7]
[334299952,1722927040846,-2485.791845,0.00028362,7]
[334299953,1722927040855,-1486.755559,0.00028362,7]
[334299954,1722927040865,-2485.791845,0.00028362,7]
[334299955,1722927040875,-1486.755559,0.00028362,7]
[334299956,1722927040891,-270.267308,0.00028362,7]
[334299957,1722927040900,-1510.644439,0.00028362,7]
[334299958,1722927040910,-1510.644439,0.00028362,7]
[334299959,1722927040919,-347.065589,0.00028362,7]
[334299960,1722927040928,-347.065589,0.00028362,7]
[334299961,1722927040937,-780.373748,0.00028362,7]
[334299962,1722927040946,-780.373748,0.00028362,7]
[334299963,1722927040956,-182.893175,0.00028362,7]
[334299964,1722927040966,-182.893175,0.00028362,7]
[334299965,1722927040975,-151.0,0.00028362,7]
[334299966,1722927041072,-274.612016,0.00028362,7]
[334299967,1722927041082,-274.612016,0.00028362,7]
[334299968,1722927041091,-151.0,0.00028362,7]
[334299969,1722927041100,-346991.929,0.00028373,30]
[334299970,1722927041109,-151.0,0.00028373,7]
[334299971,1722927041119,-151.707734,0.00028373,7]
[334299972,1722927041131,-1216.975132,0.00028373,7]
[334299973,1722927041140,-1216.975132,0.00028373,7]
[334299974,1722927041149,-151.0,0.00028373,7]
[334299975,1722927041159,-2194.70977,0.00028373,7]
[334299976,1722927041168,-2194.70977,0.00028373,7]
[334299977,1722927041177,-151.0,0.00028373,7]
[334299978,1722927041186,-2485.791845,0.00028373,7]
[334299979,1722927041195,-1486.755559,0.00028373,7]
[334299980,1722927041204,-2485.791845,0.00028373,7]
[334299981,1722927041214,-1486.755559,0.00028373,7]
[334299982,1722927041223,-1510.644439,0.00028373,7]
[334299983,1722927041232,-1510.644439,0.00028373,7]
[334299984,1722927041241,-347.065589,0.00028373,7]
[334299985,1722927041250,-347.065589,0.00028373,7]
[334299986,1722927041259,-780.373748,0.00028373,7]
[334299987,1722927041268,-780.373748,0.00028373,7]
[334299988,1722927041277,-182.893175,0.00028373,7]
[334299989,1722927041287,-182.893175,0.00028373,7]
[334299990,1722927041296,-151.0,0.00028373,7]
[334299991,1722927041305,-274.612016,0.00028373,7]
[334299992,1722927041314,-274.612016,0.00028373,7]
[334299993,1722927041323,-151.0,0.00028373,7]
[334299994,1722927041332,-572.12,0.000284,14]
[334299995,1722927041341,-212.77020389,0.00028989,2]
[334299996,1722927041351,-150.112233,0.00029,5]
[334299997,1722927041360,-242.0,0.00029,30]
[334299998,1722927041370,-150.112233,0.00029,6]
[334299999,1722927041380,-233.6,0.00029336,6]
[334300000,1722927041390,-150.112233,0.000299,8]
[334300001,1722927041399,-824.36308419,0.0003,21]
[334300002,1722927041409,-302.81833017,0.0003,2]
[334300003,1722927041419,-102133.49542043,0.0003,2]
[334300004,1722927041472,-284.40792874,0.00019176,2]
[334300005,1722927041481,-5305.35850758,0.0003,2]
[334300017,1722927043422,-300.0,0.00019176,2]
[334300018,1722927043441,-500.0,0.00019176,2]
[334300019,1722927043461,-500.0,0.00019176,2]
[334300020,1722927043481,-500.0,0.00019176,2]
[334300021,1722927043500,-583.41035748,0.00019176,2]
[334300022,1722927043520,-500.0,0.00019176,2]
[334300023,1722927043536,-155.30676377,0.00021011,2]
[334300024,1722927043554,-328915.43950971,0.0003,2]
[334300025,1722927043574,-151.0,0.0003,120]
[334300027,1722927043592,-833.28281554,0.00030295,2]
[334300028,1722927043604,-233.6,0.00030455,7]
[334300029,1722927043622,-150.112233,0.000305,8]
[334300031,1722927043639,-150.112233,0.000307,7]
[334300034,1722927043658,-4086.08,0.000311,14]
[334300036,1722927043672,-1001.967972,0.000311,7]
[334300039,1722927043689,-233.6,0.00031574,7]
[334300041,1722927043704,-150.112233,0.000316,7]
[334300042,1722927043719,-179.49,0.000316,7]
[334300043,1722927043734,-1000.0,0.000316,7]
[334300044,1722927043749,-258.54615627,0.00031883,2]
[334300045,1722927043764,-572.12,0.000319,14]
[334300046,1722927043779,-1000.0,0.00032,32]
[334300047,1722927043794,-183.0,0.00032013,30]
[334300048,1722927043809,-150.112233,0.000321,10]
[334300050,1722927043824,-163.0,0.00032299,2]
[334300052,1722927043839,-163.0,0.00032299,2]
[334300055,1722927043856,-163.0,0.00032299,2]
[334300057,1722927043871,-163.0,0.00032299,2]
[334300059,1722927043887,-163.0,0.00032299,2]
[334300061,1722927043902,-163.0,0.00032299,2]
[334300063,1722927043917,-163.0,0.00032299,2]
[334300066,1722927043932,-163.0,0.00032299,2]
[334300068,1722927043946,-163.0,0.00032299,2]
[334300070,1722927043960,-320.0,0.00032299,2]
[334300072,1722927043975,-320.0,0.00032299,2]
[334300075,1722927043989,-320.0,0.00032299,2]
[334300076,1722927044003,-320.0,0.00032299,2]
[334300077,1722927044018,-320.0,0.00032299,2]
[334300078,1722927044033,-320.0,0.00032299,2]
[334300079,1722927044048,-320.0,0.00032299,2]
[334300080,1722927044063,-320.0,0.00032299,2]
[334300081,1722927044077,-320.0,0.00032299,2]
[334300082,1722927044091,-320.0,0.00032299,2]
[334300083,1722927044105,-320.0,0.00032299,2]
[334300084,1722927044119,-320.0,0.00032299,2]
[334300085,1722927044134,-320.0,0.00032299,2]
[334300086,1722927044149,-320.0,0.00032299,2]
[334300087,1722927044163,-320.0,0.00032299,2]
[334300088,1722927044178,-320.0,0.00032299,2]
[334300089,1722927044193,-320.0,0.00032299,2]
[334300090,1722927044207,-833.28281554,0.00032318,2]
[334300091,1722927044222,-151.0,0.00032411,120]
[334300092,1722927044236,-150.112233,0.000325,8]
[334300093,1722927044249,-217.0,0.00032569,2]
[334300094,1722927044264,-217.0,0.00032569,2]
[334300095,1722927044278,-217.0,0.00032569,2]
[334300096,1722927044292,-217.0,0.00032569,2]
[334300097,1722927044306,-217.0,0.00032569,2]
[334300098,1722927044320,-217.0,0.00032569,2]
[334300099,1722927044334,-217.0,0.00032569,2]
[334300100,1722927044348,-217.0,0.00032569,2]
[334300101,1722927044363,-217.0,0.00032569,2]
[334300102,1722927044377,-217.0,0.00032569,2]
[334300103,1722927044519,-217.0,0.00032569,2]
[334300104,1722927044540,-217.0,0.00032569,2]
[334300105,1722927044549,-217.0,0.00032569,2]
[334300106,1722927044558,-217.0,0.00032569,2]
[334300107,1722927044568,-217.0,0.00032569,2]
[334300108,1722927044579,-217.0,0.00032569,2]
[334300109,1722927044588,-217.0,0.00032569,2]
[334300110,1722927044597,-217.0,0.00032569,2]
[334300111,1722927044606,-217.0,0.00032569,2]
[334300112,1722927044615,-217.0,0.00032569,2]
[334300113,1722927044623,-217.0,0.00032569,2]
[334300114,1722927044633,-217.0,0.00032569,2]
[334300115,1722927044643,-217.0,0.00032569,2]
[334300116,1722927044655,-217.0,0.00032569,2]
[334300117,1722927044665,-217.0,0.00032569,2]
[334300118,1722927044674,-217.0,0.00032569,2]
[334300119,1722927044683,-217.0,0.00032569,2]
[334300120,1722927044693,-217.0,0.00032569,2]
[334300121,1722927044703,-393.0,0.00032569,2]
[334300122,1722927044712,-393.0,0.00032569,2]
[334300123,1722927044722,-393.0,0.00032569,2]
[334300124,1722927044731,-393.0,0.00032569,2]
[334300125,1722927044741,-393.0,0.00032569,2]
[334300126,1722927044750,-393.0,0.00032569,2]
[334300127,1722927044759,-393.0,0.00032569,2]
[334300128,1722927044769,-393.0,0.00032569,2]
[334300129,1722927044778,-393.0,0.00032569,2]
[334300130,1722927044787,-393.0,0.00032569,2]
[334300131,1722927044796,-393.0,0.00032569,2]
[334300132,1722927044805,-393.0,0.00032569,2]
[334300133,1722927044816,-393.0,0.00032569,2]
[334300134,1722927044825,-393.0,0.00032569,2]
[334300135,1722927044834,-393.0,0.00032569,2]
[334300136,1722927044843,-393.0,0.00032569,2]
[334300137,1722927044853,-393.0,0.00032569,2]
[334300138,1722927044863,-246.0,0.00032569,2]
[334300139,1722927044872,-246.0,0.00032569,2]
[334300140,1722927044884,-246.0,0.00032569,2]
[334300141,1722927044894,-246.0,0.00032569,2]
[334300142,1722927044903,-246.0,0.00032569,2]
[334300143,1722927044913,-246.0,0.00032569,2]
[334300144,1722927044924,-246.0,0.00032569,2]
[334300145,1722927044935,-246.0,0.00032569,2]
[334300146,1722927044945,-246.0,0.00032569,2]
[334300147,1722927044954,-246.0,0.00032569,2]
[334300148,1722927044964,-246.0,0.00032569,2]
[334300149,1722927044973,-246.0,0.00032569,2]
[334300150,1722927044983,-246.0,0.00032569,2]
[334300151,1722927044992,-246.0,0.00032569,2]
[334300152,1722927045002,-246.0,0.00032569,2]
[334300153,1722927045012,-246.0,0.00032569,2]
[334300154,1722927045022,-246.0,0.00032569,2]
[334300155,1722927045031,-446.0,0.00032569,2]
[334300156,1722927045040,-446.0,0.00032569,2]
[334300157,1722927045050,-446.0,0.00032569,2]
[334300158,1722927045059,-446.0,0.00032569,2]
[334300159,1722927045069,-446.0,0.00032569,2]
[334300160,1722927045079,-446.0,0.00032569,2]
[334300161,1722927045089,-446.0,0.00032569,2]
[334300162,1722927045098,-446.0,0.00032569,2]
[334300163,1722927045108,-446.0,0.00032569,2]
[334300164,1722927045119,-446.0,0.00032569,2]
[334300165,1722927045129,-446.0,0.00032569,2]
[334300166,1722927045144,-446.0,0.00032569,2]
[334300167,1722927045153,-446.0,0.00032569,2]
[334300168,1722927045162,-446.0,0.00032569,2]
[334300169,1722927045172,-446.0,0.00032569,2]
[334300170,1722927045181,-446.0,0.00032569,2]
[334300171,1722927045190,-446.0,0.00032569,2]
[334300172,1722927045200,-260.0,0.00032569,2]
[334300173,1722927045209,-260.0,0.00032569,2]
[334300174,1722927045219,-260.0,0.00032569,2]
[334300175,1722927045229,-260.0,0.00032569,2]
[334300176,1722927045239,-260.0,0.00032569,2]
[334300177,1722927045250,-260.0,0.00032569,2]
[334300178,1722927045260,-260.0,0.00032569,2]
[334300179,1722927045269,-260.0,0.00032569,2]
[334300180,1722927045279,-260.0,0.00032569,2]
[334300181,1722927045289,-260.0,0.00032569,2]
[334300182,1722927045298,-260.0,0.00032569,2]
[334300183,1722927045308,-260.0,0.00032569,2]
[334300184,1722927045318,-260.0,0.00032569,2]
[334300185,1722927045327,-260.0,0.00032569,2]
[334300186,1722927045338,-260.0,0.00032569,2]
[334300187,1722927045347,-260.0,0.00032569,2]
[334300188,1722927045357,-260.0,0.00032569,2]
[334300189,1722927045367,-486.0,0.00032569,2]
[334300190,1722927045377,-486.0,0.00032569,2]
[334300191,1722927045390,-486.0,0.00032569,2]
[334300192,1722927045400,-486.0,0.00032569,2]
[334300193,1722927045409,-486.0,0.00032569,2]
[334300194,1722927045418,-486.0,0.00032569,2]
[334300195,1722927045427,-486.0,0.00032569,2]
[334300196,1722927045438,-486.0,0.00032569,2]
[334300197,1722927045449,-486.0,0.00032569,2]
[334300198,1722927045459,-486.0,0.00032569,2]
[334300199,1722927045468,-486.0,0.00032569,2]
[334300200,1722927045479,-486.0,0.00032569,2]
[334300201,1722927045488,-486.0,0.00032569,2]
[334300202,1722927045498,-486.0,0.00032569,2]
[334300203,1722927045508,-486.0,0.00032569,2]
[334300204,1722927045518,-486.0,0.00032569,2]
[334300205,1722927045528,-486.0,0.00032569,2]
[334300206,1722927045537,-267.0,0.00032569,2]
[334300207,1722927045547,-267.0,0.00032569,2]
[334300208,1722927045557,-267.0,0.00032569,2]
[334300209,1722927045566,-267.0,0.00032569,2]
[334300210,1722927045576,-267.0,0.00032569,2]
[334300211,1722927045586,-267.0,0.00032569,2]
[334300212,1722927045596,-267.0,0.00032569,2]
[334300213,1722927045606,-267.0,0.00032569,2]
[334300214,1722927045615,-267.0,0.00032569,2]
[334300215,1722927045625,-267.0,0.00032569,2]
[334300216,1722927045635,-267.0,0.00032569,2]
[334300217,1722927045646,-267.0,0.00032569,2]
[334300218,1722927045656,-267.0,0.00032569,2]
[334300219,1722927045665,-267.0,0.00032569,2]
[334300220,1722927045674,-267.0,0.00032569,2]
[334300221,1722927045684,-267.0,0.00032569,2]
[334300222,1722927045693,-267.0,0.00032569,2]
[334300223,1722927045702,-486.0,0.00032569,2]
[334300224,1722927045712,-486.0,0.00032569,2]
[334300225,1722927045722,-486.0,0.00032569,2]
[334300226,1722927045732,-486.0,0.00032569,2]
[334300227,1722927045741,-486.0,0.00032569,2]
[334300228,1722927045752,-486.0,0.00032569,2]
[334300229,1722927045762,-486.0,0.00032569,2]
[334300230,1722927045771,-486.0,0.00032569,2]
[334300231,1722927045780,-486.0,0.00032569,2]
[334300232,1722927045789,-486.0,0.00032569,2]
[334300233,1722927045799,-486.0,0.00032569,2]
[334300234,1722927045808,-486.0,0.00032569,2]
[334300235,1722927045818,-486.0,0.00032569,2]
[334300236,1722927045827,-486.0,0.00032569,2]
[334300238,1722927045837,-486.0,0.00032569,2]
[334300240,1722927045846,-486.0,0.00032569,2]
[334300241,1722927045855,-486.0,0.00032569,2]
[334300242,1722927045865,-153.0,0.0003257,2]
[334300243,1722927045875,-153.0,0.0003257,2]
[334300244,1722927045888,-153.0,0.0003257,2]
[334300245,1722927045902,-153.0,0.0003257,2]
[334300246,1722927045911,-153.0,0.0003257,2]
[334300247,1722927045920,-175.0,0.0003257,2]
[334300248,1722927045930,-175.0,0.0003257,2]
[334300249,1722927045939,-175.0,0.0003257,2]
[334300251,1722927045948,-175.0,0.0003257,2]
[334300252,1722927045957,-175.0,0.0003257,2]
[334300253,1722927045966,-175.0,0.0003257,2]
[334300254,1722927045975,-175.0,0.0003257,2]
[334300255,1722927045983,-175.0,0.0003257,2]
[334300256,1722927045993,-175.0,0.0003257,2]
[334300257,1722927046002,-175.0,0.0003257,2]
[334300258,1722927046010,-175.0,0.0003257,2]
[334300259,1722927046019,-175.0,0.0003257,2]
[334300260,1722927046029,-175.0,0.0003257,2]
[334300261,1722927046038,-175.0,0.0003257,2]
[334300262,1722927046047,-175.0,0.0003257,2]
[334300264,1722927046057,-233.6,0.00032693,15]
[334300266,1722927046066,-150.112233,0.000334,10]
[334300268,1722927046076,-4086.08,0.000334,14]
[334300270,1722927046085,-241.747545,0.00033626,2]
[334300272,1722927046094,-150.112233,0.000337,6]
[334300274,1722927046103,-233.6,0.00033812,15]
[334300275,1722927046114,-179.49,0.000339,30]
[334300276,1722927046123,-150.112233,0.000343,10]
[334300277,1722927046132,-572.12,0.000343,14]
[334300278,1722927046142,-833.28281554,0.0003434,2]
[334300279,1722927046151,-151.0,0.00034822,120]
[334300280,1722927046160,-233.6,0.0003493,15]
[334300281,1722927046257,-10001.18105578,0.00035,30]
[334300282,1722927046266,-1000.0,0.00035,35]
[334300283,1722927046275,-150.112233,0.000351,10]
[334300284,1722927046285,-150.112233,0.000353,9]
[334300285,1722927046294,-7267.24,0.00035616,3]
[334300286,1722927046303,-153.0,0.00035753,2]
[334300287,1722927046313,-150.112233,0.00036,10]
[334300288,1722927046322,-233.6,0.00036049,15]
[334300289,1722927046332,-156.8955057,0.00036164,2]
[334300290,1722927046342,-153.0,0.00036164,2]
[334300291,1722927046352,-153.0,0.00036164,2]
[334300292,1722927046361,-153.0,0.00036164,2]
[334300293,1722927046371,-833.28281554,0.00036363,2]
[334300294,1722927046380,-306.0,0.00036712,2]
[334300295,1722927046392,-153.0,0.00036712,2]
[334300296,1722927046401,-153.0,0.00036712,2]
[334300297,1722927046410,-153.0,0.00036712,2]
[334300298,1722927046419,-151.0,0.000368,7]
[334300299,1722927046429,-202.617801,0.000368,7]
[334300300,1722927046438,-202.617801,0.000368,7]
[334300301,1722927046447,-208.424901,0.000368,7]
[334300302,1722927046457,-153.034162,0.000368,7]
[334300303,1722927046466,-151.0,0.000368,7]
[334300304,1722927046475,-241.514565,0.000368,7]
[334300305,1722927046483,-241.514565,0.000368,7]
[334300306,1722927046493,-151.0,0.000368,7]
[334300307,1722927046503,-151.0,0.000368,7]
[334300308,1722927046511,-190.436969,0.000368,7]
[334300309,1722927046521,-190.436969,0.000368,7]
[334300310,1722927046531,-354.35954,0.000368,7]
[334300311,1722927046540,-354.35954,0.000368,7]
[334300312,1722927046549,-1989.794819,0.000368,7]
[334300313,1722927046558,-281.146345,0.000368,7]
[334300314,1722927046567,-332.035726,0.000368,7]
[334300315,1722927046576,-2194.70977,0.000368,7]
[334300316,1722927046585,-2194.70977,0.000368,7]
[334300317,1722927046595,-151.0,0.000368,7]
[334300318,1722927046604,-274.612016,0.000368,7]
[334300319,1722927046614,-274.612016,0.000368,7]
[334300320,1722927046623,-273.880659,0.000368,7]
[334300321,1722927046632,-572.12,0.000368,14]
[334300322,1722927046644,-182.893175,0.00036815,7]
[334300323,1722927046656,-182.893175,0.00036815,7]
[334300324,1722927046666,-202.43,0.0003687,7]
[334300325,1722927046675,-150.5,0.0003688,7]
[334300326,1722927046686,-150.5,0.0003689,7]
[334300327,1722927046695,-352.779198,0.0003689,7]
[334300328,1722927046704,-352.779198,0.0003689,7]
[334300329,1722927046714,-156.885027,0.0003689,7]
[334300330,1722927046724,-1395.291892,0.0003689,7]
[334300331,1722927046734,-1395.291892,0.0003689,7]
[334300332,1722927046743,-81053.21548277,0.000369,21]
[334300333,1722927046752,-909459.33487394,0.000369,7]
[334300334,1722927046762,-352.779198,0.000369,7]
[334300335,1722927046771,-352.779198,0.000369,7]
[334300336,1722927046781,-310.0,0.000369,30]
[334300337,1722927046790,-310.0,0.000369,30]
[334300338,1722927046799,-310.0,0.000369,30]
[334300339,1722927046809,-310.0,0.000369,30]
[334300340,1722927046819,-310.0,0.000369,30]
[334300341,1722927046828,-310.0,0.000369,30]
[334300342,1722927046837,-256.986434,0.000369,30]
[334300343,1722927046848,-151.0,0.000369,7]
[334300344,1722927046858,-151.0,0.000369,7]
[334300345,1722927046868,-1395.291892,0.000369,7]
[334300346,1722927046877,-1395.291892,0.000369,7]
[334300347,1722927046890,-151.0,0.000369,7]
[334300348,1722927046901,-151.0,0.000369,7]
[334300349,1722927046910,-241.514565,0.000369,7]
[334300350,1722927046919,-241.514565,0.000369,7]
[334300351,1722927046928,-241.514565,0.000369,7]
[334300352,1722927046937,-241.514565,0.000369,7]
[334300353,1722927046946,-151.0,0.000369,7]
[334300354,1722927046955,-186.912454,0.000369,7]
[334300355,1722927046964,-190.436969,0.000369,7]
[334300356,1722927046973,-190.436969,0.000369,7]
[334300357,1722927046983,-354.35954,0.000369,7]
[334300358,1722927046992,-354.35954,0.000369,7]
[334300359,1722927047001,-1989.794819,0.000369,7]
[334300360,1722927047010,-332.035726,0.000369,7]
[334300361,1722927047020,-1216.975132,0.000369,7]
[334300362,1722927047029,-1216.975132,0.000369,7]
[334300363,1722927047039,-1216.975132,0.000369,7]
[334300364,1722927047049,-1216.975132,0.000369,7]
[334300365,1722927047058,-151.0,0.000369,7]
[334300366,1722927047067,-151.0,0.000369,7]
[334300367,1722927047076,-2194.70977,0.000369,7]
[334300368,1722927047086,-2194.70977,0.000369,7]
[334300369,1722927047095,-2194.70977,0.000369,7]
[334300370,1722927047104,-2194.70977,0.000369,7]
[334300371,1722927047115,-151.0,0.000369,7]
[334300372,1722927047125,-151.0,0.000369,7]
[334300373,1722927047138,-2485.791845,0.000369,7]
[334300374,1722927047148,-2485.791845,0.000369,7]
[334300375,1722927047157,-1486.755559,0.000369,7]
[334300376,1722927047167,-1486.755559,0.000369,7]
[334300377,1722927047176,-2485.791845,0.000369,7]
[334300378,1722927047185,-2485.791845,0.000369,7]
[334300379,1722927047195,-1486.755559,0.000369,7]
[334300380,1722927047204,-1486.755559,0.000369,7]